[Event "*** Biggest EVER Titled Tuesday"]
[Site "Chess.com"]
[Date "2018.04.17"]
[Round "10"]
[White "Arystanner23"]
[Black "Alopekos"]
[Result "1/2-1/2"]
[WhiteElo "2491"]
[BlackElo "2306"]
[TimeControl "180+2"]
[EndTime "15:24:26 PDT"]
[Termination "Game drawn - insufficient material"]

1. Nf3 {[%clk 0:03:01.4]} 1... Nf6 {[%clk 0:02:56.5]} 2. g3 {[%clk 0:03:01.7]}
2... d5 {[%clk 0:02:54.5]} 3. Bg2 {[%clk 0:03:02.9]} 3... e6 {[%clk 0:02:56.1]}
4. O-O {[%clk 0:03:04.4]} 4... Be7 {[%clk 0:02:57.6]} 5. d4 {[%clk 0:03:06]}
5... O-O {[%clk 0:02:59]} 6. b3 {[%clk 0:03:07.4]} 6... a5 {[%clk 0:02:56.5]} 7.
a3 {[%clk 0:03:07.7]} 7... a4 {[%clk 0:02:57.3]} 8. b4 {[%clk 0:03:08.6]} 8...
Nbd7 {[%clk 0:02:55.3]} 9. Nbd2 {[%clk 0:03:09]} 9... Nb6 {[%clk 0:02:42.8]} 10.
Ne5 {[%clk 0:03:10.2]} 10... Nfd7 {[%clk 0:02:40.8]} 11. Bb2 {[%clk 0:03:09.1]}
11... Nxe5 {[%clk 0:02:20.9]} 12. dxe5 {[%clk 0:03:11]} 12... c5 {[%clk
0:02:17.6]} 13. bxc5 {[%clk 0:03:11.1]} 13... Bxc5 {[%clk 0:02:19.5]} 14. e4
{[%clk 0:03:12]} 14... Nc4 {[%clk 0:00:59.4]} 15. Nxc4 {[%clk 0:03:10.7]} 15...
dxc4 {[%clk 0:01:01.3]} 16. Qe2 {[%clk 0:03:07.2]} 16... b5 {[%clk 0:00:59]} 17.
Kh1 {[%clk 0:03:08.5]} 17... Qb6 {[%clk 0:00:23.5]} 18. f4 {[%clk 0:03:08.5]}
18... b4 {[%clk 0:00:12.7]} 19. axb4 {[%clk 0:03:08.3]} 19... Bxb4 {[%clk
0:00:11.8]} 20. Ba3 {[%clk 0:03:06]} 20... Bxa3 {[%clk 0:00:10.5]} 21. Rxa3
{[%clk 0:03:07.9]} 21... Qb4 {[%clk 0:00:07.6]} 22. Qe3 {[%clk 0:03:08.1]} 22...
Rd8 {[%clk 0:00:04.3]} 23. f5 {[%clk 0:03:08.8]} 23... Bd7 {[%clk 0:00:03.1]}
24. f6 {[%clk 0:03:09.6]} 24... g6 {[%clk 0:00:04.3]} 25. h4 {[%clk 0:02:58.1]}
25... Bc6 {[%clk 0:00:04.4]} 26. Rf2 {[%clk 0:02:54.3]} 26... Rd1+ {[%clk
0:00:03.8]} 27. Kh2 {[%clk 0:02:55.8]} 27... Re1 {[%clk 0:00:03.2]} 28. Qh6
{[%clk 0:02:53.2]} 28... Qf8 {[%clk 0:00:04]} 29. Qxf8+ {[%clk 0:02:50.2]} 29...
Kxf8 {[%clk 0:00:05.9]} 30. Rd2 {[%clk 0:02:48.5]} 30... Bxe4 {[%clk 0:00:03.4]}
31. Rxa4 {[%clk 0:02:50]} 31... Re8 {[%clk 0:00:02.7]} 32. Rxc4 {[%clk
0:02:50.5]} 32... Bxg2 {[%clk 0:00:03.2]} 33. Kxg2 {[%clk 0:02:50.4]} 33... Rxe5
{[%clk 0:00:05.1]} 34. Rc7 {[%clk 0:02:50.2]} 34... Rf5 {[%clk 0:00:06.2]} 35.
Rf2 {[%clk 0:02:51.5]} 35... Ra8 {[%clk 0:00:02.6]} 36. Rxf5 {[%clk 0:02:51.6]}
36... exf5 {[%clk 0:00:04.1]} 37. c4 {[%clk 0:02:52.9]} 37... Ke8 {[%clk
0:00:05.3]} 38. Re7+ {[%clk 0:02:53]} 38... Kf8 {[%clk 0:00:05.6]} 39. Rb7
{[%clk 0:02:52.2]} 39... Ke8 {[%clk 0:00:05.7]} 40. c5 {[%clk 0:02:52.4]} 40...
Rc8 {[%clk 0:00:06.6]} 41. Re7+ {[%clk 0:02:53.2]} 41... Kf8 {[%clk 0:00:07]}
42. Re5 {[%clk 0:02:04.9]} 42... Rc6 {[%clk 0:00:07.5]} 43. Kf3 {[%clk
0:02:06.4]} 43... Rxf6 {[%clk 0:00:08.3]} 44. Ke3 {[%clk 0:02:08]} 44... Re6
{[%clk 0:00:05.8]} 45. Kd4 {[%clk 0:02:05.6]} 45... Ke7 {[%clk 0:00:02.1]} 46.
Rd5 {[%clk 0:01:49.7]} 46... Rc6 {[%clk 0:00:02.8]} 47. Kc4 {[%clk 0:01:50.4]}
47... Ke6 {[%clk 0:00:02.8]} 48. Rd3 {[%clk 0:01:49.3]} 48... f4 {[%clk
0:00:03.8]} 49. gxf4 {[%clk 0:01:49.7]} 49... Kf5 {[%clk 0:00:05.3]} 50. Rd4
{[%clk 0:01:48]} 50... Kg4 {[%clk 0:00:03.3]} 51. Kb5 {[%clk 0:01:49.5]} 51...
Rc8 {[%clk 0:00:03.7]} 52. c6 {[%clk 0:01:47.2]} 52... Kxh4 {[%clk 0:00:04.8]}
53. Rd7 {[%clk 0:01:48.8]} 53... f5 {[%clk 0:00:04.4]} 54. Rxh7+ {[%clk
0:01:49.8]} 54... Kg4 {[%clk 0:00:05.5]} 55. Rg7 {[%clk 0:01:50.9]} 55... Kxf4
{[%clk 0:00:06.1]} 56. Rxg6 {[%clk 0:01:50.4]} 56... Ke3 {[%clk 0:00:07.4]} 57.
Kb6 {[%clk 0:01:46.6]} 57... f4 {[%clk 0:00:07.4]} 58. Kb7 {[%clk 0:01:46.7]}
58... Rf8 {[%clk 0:00:05]} 59. Re6+ {[%clk 0:01:45.9]} 59... Kd4 {[%clk
0:00:04.3]} 60. c7 {[%clk 0:01:46.2]} 60... Rf7 {[%clk 0:00:03]} 61. Rf6 {[%clk
0:01:40.8]} 61... Rxc7+ {[%clk 0:00:03.4]} 62. Kxc7 {[%clk 0:01:42.2]} 62... Ke3
{[%clk 0:00:05.2]} 63. Kd6 {[%clk 0:01:12.6]} 63... f3 {[%clk 0:00:07.1]} 64.
Kd5 {[%clk 0:01:08.7]} 64... f2 {[%clk 0:00:06.4]} 65. Re6+ {[%clk 0:01:07.5]}
65... Kd2 {[%clk 0:00:07]} 66. Rf6 {[%clk 0:01:09]} 66... Ke2 {[%clk 0:00:08.3]}
67. Re6+ {[%clk 0:01:10.3]} 67... Kd2 {[%clk 0:00:09.5]} 68. Rf6 {[%clk
0:01:11.7]} 68... Ke2 {[%clk 0:00:10.9]} 69. Ke4 {[%clk 0:01:13.2]} 69... f1=Q
{[%clk 0:00:11.6]} 70. Rxf1 {[%clk 0:01:14.3]} 70... Kxf1 {[%clk 0:00:13.5]}
1/2-1/2

[Event "*** Biggest EVER Titled Tuesday"]
[Site "Chess.com"]
[Date "2018.04.17"]
[Round "10"]
[White "colemman"]
[Black "Anar_Aliakbarov"]
[Result "0-1"]
[WhiteElo "2490"]
[BlackElo "2400"]
[TimeControl "180+2"]
[EndTime "15:24:41 PDT"]
[Termination "Anar_Aliakbarov won by resignation"]

1. d4 {[%clk 0:03:01.9]} 1... d5 {[%clk 0:02:59.6]} 2. Nf3 {[%clk 0:03:03.1]}
2... Nf6 {[%clk 0:02:57.1]} 3. Nbd2 {[%clk 0:03:04.3]} 3... e6 {[%clk
0:02:56.8]} 4. e3 {[%clk 0:03:04.9]} 4... Bd6 {[%clk 0:02:56.5]} 5. Bd3 {[%clk
0:03:06.2]} 5... O-O {[%clk 0:02:57.7]} 6. O-O {[%clk 0:03:07.5]} 6... b6 {[%clk
0:02:58.8]} 7. e4 {[%clk 0:03:07.8]} 7... dxe4 {[%clk 0:02:58.7]} 8. Nxe4 {[%clk
0:03:09.6]} 8... Nxe4 {[%clk 0:02:57.4]} 9. Bxe4 {[%clk 0:03:10]} 9... c6 {[%clk
0:02:58.4]} 10. Ng5 {[%clk 0:03:01.9]} 10... h6 {[%clk 0:02:54.2]} 11. Qh5
{[%clk 0:02:54.8]} 11... f5 {[%clk 0:02:50.2]} 12. Bd3 {[%clk 0:02:21.1]} 12...
hxg5 {[%clk 0:02:49.2]} 13. Bxg5 {[%clk 0:02:22.9]} 13... Be7 {[%clk 0:02:47.4]}
14. Bxe7 {[%clk 0:02:18.1]} 14... Qxe7 {[%clk 0:02:47.6]} 15. Rfe1 {[%clk
0:02:19.5]} 15... Qf7 {[%clk 0:02:40.4]} 16. Qf3 {[%clk 0:02:17.6]} 16... Bb7
{[%clk 0:02:35.9]} 17. Bc4 {[%clk 0:02:16.4]} 17... Re8 {[%clk 0:02:36.1]} 18.
Qb3 {[%clk 0:02:05]} 18... Bc8 {[%clk 0:02:28.8]} 19. Qf3 {[%clk 0:01:47.4]}
19... a5 {[%clk 0:02:09.1]} 20. Re5 {[%clk 0:01:39.2]} 20... g6 {[%clk 0:02:03]}
21. Rae1 {[%clk 0:01:27.3]} 21... Ra7 {[%clk 0:02:02.4]} 22. g4 {[%clk
0:01:11.6]} 22... b5 {[%clk 0:01:55.9]} 23. Bd3 {[%clk 0:01:07.4]} 23... Nd7
{[%clk 0:01:49.5]} 24. R5e2 {[%clk 0:01:04.3]} 24... Nf6 {[%clk 0:01:48.9]} 25.
gxf5 {[%clk 0:01:01.4]} 25... gxf5 {[%clk 0:01:49.2]} 26. h3 {[%clk 0:00:42.3]}
26... Nd5 {[%clk 0:01:30.2]} 27. Bxf5 {[%clk 0:00:33]} 27... Rae7 {[%clk
0:01:29.8]} 28. Bg4 {[%clk 0:00:27.5]} 28... Qxf3 {[%clk 0:01:29.6]} 29. Bxf3
{[%clk 0:00:28]} 29... Nf4 {[%clk 0:01:27.8]} 30. Re5 {[%clk 0:00:21.3]} 30...
Nxh3+ {[%clk 0:01:23.6]} 31. Kh2 {[%clk 0:00:22.4]} 31... Nf4 {[%clk 0:01:21]}
32. Bxc6 {[%clk 0:00:21.5]} 32... Rf8 {[%clk 0:01:21.8]} 33. Rg1+ {[%clk
0:00:21.6]} 33... Rg7 {[%clk 0:01:22]} 34. Reg5 {[%clk 0:00:21.5]} 34... Rxg5
{[%clk 0:01:15.6]} 35. Rxg5+ {[%clk 0:00:22.8]} 35... Kf7 {[%clk 0:01:17.1]} 36.
Rxb5 {[%clk 0:00:21.3]} 36... Rh8+ {[%clk 0:01:08.5]} 37. Kg3 {[%clk 0:00:20.4]}
37... Ne2+ {[%clk 0:01:09.5]} 38. Kg4 {[%clk 0:00:18.9]} 38... Nxd4 {[%clk
0:01:04.4]} 39. Rc5 {[%clk 0:00:19.4]} 39... e5+ {[%clk 0:00:50.2]} 40. Kg3
{[%clk 0:00:20.1]} 40... Rg8+ {[%clk 0:00:47.4]} 41. Kh4 {[%clk 0:00:17.8]}
41... Nf5+ {[%clk 0:00:41.2]} 42. Kh3 {[%clk 0:00:18.1]} 42... Kf6 {[%clk
0:00:36.8]} 43. Bd5 {[%clk 0:00:16.4]} 43... Ne7+ {[%clk 0:00:32.6]} 44. Kh2
{[%clk 0:00:17]} 44... Nxd5 {[%clk 0:00:30.4]} 45. Rxd5 {[%clk 0:00:18.7]} 45...
Bb7 {[%clk 0:00:30.7]} 46. Rd2 {[%clk 0:00:19.9]} 46... Bf3 {[%clk 0:00:27.2]}
47. c4 {[%clk 0:00:20.7]} 47... Kf5 {[%clk 0:00:27.1]} 48. Rd7 {[%clk
0:00:19.3]} 48... Rg2+ {[%clk 0:00:25.9]} 49. Kh3 {[%clk 0:00:20.1]} 49... Rxf2
{[%clk 0:00:19]} 50. Kg3 {[%clk 0:00:19.5]} 50... Rf1 {[%clk 0:00:20.2]} 51.
Rf7+ {[%clk 0:00:19.7]} 51... Ke4 {[%clk 0:00:21.6]} 52. c5 {[%clk 0:00:19]}
52... Rg1+ {[%clk 0:00:22.6]} 53. Kh2 {[%clk 0:00:19.3]} 53... Rg2+ {[%clk
0:00:23.3]} 54. Kh3 {[%clk 0:00:20.6]} 54... Rxb2 {[%clk 0:00:24.1]} 55. c6
{[%clk 0:00:21.9]} 55... Rc2 {[%clk 0:00:24.9]} 56. c7 {[%clk 0:00:23.1]} 56...
Ke3 {[%clk 0:00:25.7]} 57. Kg3 {[%clk 0:00:23.3]} 57... e4 {[%clk 0:00:26.9]}
58. a3 {[%clk 0:00:20.6]} 58... Rg2+ {[%clk 0:00:24.2]} 59. Kh3 {[%clk
0:00:21.8]} 59... Rc2 {[%clk 0:00:26.1]} 60. Kg3 {[%clk 0:00:22.8]} 60... Bh1
{[%clk 0:00:24.1]} 61. Rh7 {[%clk 0:00:21.7]} 61... Bf3 {[%clk 0:00:22.9]} 62.
Re7 {[%clk 0:00:22.6]} 62... Kd4 {[%clk 0:00:20.4]} 63. Kf4 {[%clk 0:00:21.6]}
63... Kd5 {[%clk 0:00:21.2]} 64. Kf5 {[%clk 0:00:21.3]} 64... Kd6 {[%clk
0:00:22.1]} 65. Kf6 {[%clk 0:00:22.4]} 65... Rxc7 {[%clk 0:00:22.1]} 66. Re6+
{[%clk 0:00:23]} 66... Kd5 {[%clk 0:00:23]} 67. Re5+ {[%clk 0:00:24.4]} 67...
Kd4 {[%clk 0:00:24.4]} 68. Rxa5 {[%clk 0:00:24.9]} 68... e3 {[%clk 0:00:25.4]}
69. Ra7 {[%clk 0:00:20.6]} 69... Rxa7 {[%clk 0:00:25.1]} 0-1

[Event "*** Biggest EVER Titled Tuesday"]
[Site "Chess.com"]
[Date "2018.04.17"]
[Round "10"]
[White "gmjlh"]
[Black "djamir"]
[Result "1/2-1/2"]
[WhiteElo "2585"]
[BlackElo "2631"]
[TimeControl "180+2"]
[EndTime "15:25:02 PDT"]
[Termination "Game drawn - insufficient material"]

1. d4 {[%clk 0:03:01.9]} 1... Nf6 {[%clk 0:02:41.1]} 2. c4 {[%clk 0:03:02.3]}
2... e6 {[%clk 0:02:36.6]} 3. Nf3 {[%clk 0:03:03.1]} 3... c5 {[%clk 0:02:36.5]}
4. e3 {[%clk 0:03:02.5]} 4... d5 {[%clk 0:02:35.5]} 5. cxd5 {[%clk 0:03:01.7]}
5... exd5 {[%clk 0:02:35.5]} 6. Bb5+ {[%clk 0:03:01.8]} 6... Nc6 {[%clk
0:02:36.4]} 7. O-O {[%clk 0:03:01.1]} 7... a6 {[%clk 0:02:31.9]} 8. Bxc6+ {[%clk
0:03:00.9]} 8... bxc6 {[%clk 0:02:33.8]} 9. dxc5 {[%clk 0:03:01]} 9... Bxc5
{[%clk 0:02:34.1]} 10. Qc2 {[%clk 0:03:01.3]} 10... Qd6 {[%clk 0:02:33.1]} 11.
b3 {[%clk 0:02:51.1]} 11... O-O {[%clk 0:02:27.6]} 12. Bb2 {[%clk 0:02:49.8]}
12... Ba7 {[%clk 0:02:16.6]} 13. Be5 {[%clk 0:02:34.6]} 13... Qe6 {[%clk
0:02:06.3]} 14. Bd4 {[%clk 0:02:30.5]} 14... Bb8 {[%clk 0:02:01.9]} 15. Ng5
{[%clk 0:02:27.4]} 15... Qd6 {[%clk 0:01:57.1]} 16. f4 {[%clk 0:02:24.4]} 16...
Re8 {[%clk 0:01:19.7]} 17. Bxf6 {[%clk 0:01:40]} 17... Qxf6 {[%clk 0:01:21.6]}
18. Qxh7+ {[%clk 0:01:40.6]} 18... Kf8 {[%clk 0:01:22.9]} 19. Nd2 {[%clk
0:01:36.6]} 19... Ba7 {[%clk 0:01:19]} 20. Kh1 {[%clk 0:01:33]} 20... Bf5 {[%clk
0:01:06.7]} 21. e4 {[%clk 0:01:22.1]} 21... dxe4 {[%clk 0:00:31.7]} 22. Ndxe4
{[%clk 0:01:22.4]} 22... Qxa1 {[%clk 0:00:21.9]} 23. Rxa1 {[%clk 0:00:30.5]}
23... Bxh7 {[%clk 0:00:22.9]} 24. Nxh7+ {[%clk 0:00:29.1]} 24... Kg8 {[%clk
0:00:24.2]} 25. Nhf6+ {[%clk 0:00:30.5]} 25... gxf6 {[%clk 0:00:24.5]} 26. Nxf6+
{[%clk 0:00:32.4]} 26... Kg7 {[%clk 0:00:26]} 27. Nxe8+ {[%clk 0:00:34.3]} 27...
Rxe8 {[%clk 0:00:27.4]} 28. Rc1 {[%clk 0:00:35]} 28... Bd4 {[%clk 0:00:23.7]}
29. g3 {[%clk 0:00:31.8]} 29... c5 {[%clk 0:00:24.9]} 30. Rc2 {[%clk 0:00:33.1]}
30... Kf6 {[%clk 0:00:25.3]} 31. Kg2 {[%clk 0:00:34.3]} 31... Kf5 {[%clk
0:00:26.7]} 32. Rd2 {[%clk 0:00:26.7]} 32... Re1 {[%clk 0:00:26.6]} 33. Rc2
{[%clk 0:00:27.1]} 33... Ke4 {[%clk 0:00:27.8]} 34. Kh3 {[%clk 0:00:28.4]} 34...
Kd3 {[%clk 0:00:26.9]} 35. Rg2 {[%clk 0:00:29.5]} 35... f5 {[%clk 0:00:26.8]}
36. Kh4 {[%clk 0:00:30.4]} 36... Bf6+ {[%clk 0:00:27.9]} 37. Kh5 {[%clk
0:00:31.5]} 37... Ke4 {[%clk 0:00:26.5]} 38. Kg6 {[%clk 0:00:32]} 38... Bd4
{[%clk 0:00:27]} 39. Rc2 {[%clk 0:00:29.7]} 39... Kd3 {[%clk 0:00:21.8]} 40. Rg2
{[%clk 0:00:30.3]} 40... Ke4 {[%clk 0:00:23]} 41. Rc2 {[%clk 0:00:31.4]} 41...
a5 {[%clk 0:00:23.6]} 42. Rg2 {[%clk 0:00:32.1]} 42... Re3 {[%clk 0:00:22.6]}
43. Rc2 {[%clk 0:00:32.8]} 43... Re1 {[%clk 0:00:20.5]} 44. Rg2 {[%clk
0:00:30.5]} 44... Re3 {[%clk 0:00:17.9]} 45. Rc2 {[%clk 0:00:28.8]} 45... Rf3
{[%clk 0:00:18.1]} 46. Re2+ {[%clk 0:00:27.9]} 46... Be3 {[%clk 0:00:19.5]} 47.
Rc2 {[%clk 0:00:28.5]} 47... Rf2 {[%clk 0:00:21]} 48. Rxf2 {[%clk 0:00:09.3]}
48... Bxf2 {[%clk 0:00:22.9]} 49. g4 {[%clk 0:00:11.1]} 49... fxg4 {[%clk
0:00:19.9]} 50. f5 {[%clk 0:00:13]} 50... Kf3 {[%clk 0:00:12]} 51. f6 {[%clk
0:00:13.8]} 51... Bh4 {[%clk 0:00:13.2]} 52. Kf5 {[%clk 0:00:11.7]} 52... a4
{[%clk 0:00:10.2]} 53. Ke6 {[%clk 0:00:07.3]} 53... axb3 {[%clk 0:00:09.6]} 54.
axb3 {[%clk 0:00:08.2]} 54... Bg5 {[%clk 0:00:05.3]} 55. Kf5 {[%clk 0:00:07.5]}
55... Bh6 {[%clk 0:00:06.7]} 56. Kg6 {[%clk 0:00:08.9]} 56... Bf8 {[%clk
0:00:08]} 57. Kf7 {[%clk 0:00:10.4]} 57... Bd6 {[%clk 0:00:09.4]} 58. Ke6 {[%clk
0:00:11.9]} 58... Bf8 {[%clk 0:00:10.9]} 59. Kf7 {[%clk 0:00:13.2]} 59... c4
{[%clk 0:00:11.9]} 60. Kxf8 {[%clk 0:00:10.4]} 60... cxb3 {[%clk 0:00:12.7]} 61.
Kg7 {[%clk 0:00:11.6]} 61... b2 {[%clk 0:00:14.1]} 62. f7 {[%clk 0:00:13]} 62...
b1=Q {[%clk 0:00:15.7]} 63. f8=Q+ {[%clk 0:00:14.4]} 63... Kg2 {[%clk
0:00:17.1]} 64. Qf4 {[%clk 0:00:15.3]} 64... Qb7+ {[%clk 0:00:11.6]} 65. Kh6
{[%clk 0:00:15.4]} 65... Qf3 {[%clk 0:00:13.5]} 66. Qc7 {[%clk 0:00:12.9]} 66...
g3 {[%clk 0:00:08.1]} 67. Qxg3+ {[%clk 0:00:13]} 67... Qxg3 {[%clk 0:00:10]} 68.
hxg3 {[%clk 0:00:14.9]} 68... Kxg3 {[%clk 0:00:11.4]} 1/2-1/2

[Event "*** Biggest EVER Titled Tuesday"]
[Site "Chess.com"]
[Date "2018.04.17"]
[Round "10"]
[White "vovachesss"]
[Black "biostatistician"]
[Result "1-0"]
[WhiteElo "2379"]
[BlackElo "2426"]
[TimeControl "180+2"]
[EndTime "15:25:50 PDT"]
[Termination "vovachesss won on time"]

1. Nf3 {[%clk 0:03:01.1]} 1... Nf6 {[%clk 0:03:00.7]} 2. g3 {[%clk 0:03:00.9]}
2... g6 {[%clk 0:03:02.6]} 3. Bg2 {[%clk 0:03:02.3]} 3... Bg7 {[%clk 0:03:04.5]}
4. O-O {[%clk 0:03:03.5]} 4... O-O {[%clk 0:03:06.3]} 5. d4 {[%clk 0:03:03.8]}
5... b6 {[%clk 0:03:07.6]} 6. Ne5 {[%clk 0:03:03.1]} 6... c6 {[%clk 0:03:08]} 7.
c4 {[%clk 0:03:03.7]} 7... Bb7 {[%clk 0:03:08.6]} 8. Nc3 {[%clk 0:03:04.5]} 8...
d6 {[%clk 0:03:09.8]} 9. Nd3 {[%clk 0:03:05]} 9... Nbd7 {[%clk 0:03:11]} 10. Bg5
{[%clk 0:03:05.1]} 10... e5 {[%clk 0:03:11.3]} 11. Ne4 {[%clk 0:02:54.4]} 11...
Qc7 {[%clk 0:02:49.7]} 12. Nxf6+ {[%clk 0:02:51.4]} 12... Nxf6 {[%clk
0:02:45.5]} 13. dxe5 {[%clk 0:02:46.5]} 13... dxe5 {[%clk 0:02:45.5]} 14. c5
{[%clk 0:02:46.5]} 14... Rad8 {[%clk 0:02:32.7]} 15. Qc2 {[%clk 0:02:43.6]}
15... h6 {[%clk 0:02:30]} 16. Bxf6 {[%clk 0:02:40.9]} 16... Bxf6 {[%clk
0:02:31.9]} 17. Rfd1 {[%clk 0:02:38.9]} 17... Bg7 {[%clk 0:02:31.9]} 18. Rac1
{[%clk 0:02:38.6]} 18... b5 {[%clk 0:02:31]} 19. a4 {[%clk 0:02:35.6]} 19... a6
{[%clk 0:02:31.7]} 20. Rd2 {[%clk 0:02:28]} 20... Bc8 {[%clk 0:02:30.4]} 21. Nb4
{[%clk 0:02:22.9]} 21... Bf5 {[%clk 0:02:27.1]} 22. Qd1 {[%clk 0:02:21.3]} 22...
Rxd2 {[%clk 0:02:26.4]} 23. Qxd2 {[%clk 0:02:23.1]} 23... Rd8 {[%clk 0:02:27.6]}
24. Qe3 {[%clk 0:02:22.4]} 24... e4 {[%clk 0:02:11]} 25. g4 {[%clk 0:01:52.9]}
25... Bxg4 {[%clk 0:02:08.7]} 26. Qxe4 {[%clk 0:01:44.9]} 26... Bxb2 {[%clk
0:02:08.2]} 27. Rf1 {[%clk 0:01:29.8]} 27... Bd7 {[%clk 0:01:49.8]} 28. axb5
{[%clk 0:00:44.8]} 28... axb5 {[%clk 0:01:36.5]} 29. Nxc6 {[%clk 0:00:21.4]}
29... Bxc6 {[%clk 0:01:36.5]} 30. Qxc6 {[%clk 0:00:23.2]} 30... Qxc6 {[%clk
0:01:37.7]} 31. Bxc6 {[%clk 0:00:24.5]} 31... b4 {[%clk 0:01:39.6]} 32. Bb7
{[%clk 0:00:19.6]} 32... Rd2 {[%clk 0:01:29.3]} 33. Be4 {[%clk 0:00:16.8]} 33...
Rxe2 {[%clk 0:01:27]} 34. Bd5 {[%clk 0:00:13.5]} 34... Rd2 {[%clk 0:01:24.4]}
35. Bb7 {[%clk 0:00:13.1]} 35... b3 {[%clk 0:01:23.4]} 36. Rb1 {[%clk
0:00:13.7]} 36... Bd4 {[%clk 0:01:23.3]} 37. c6 {[%clk 0:00:11.1]} 37... Rxf2
{[%clk 0:01:19.6]} 38. Kh1 {[%clk 0:00:05.1]} 38... Be5 {[%clk 0:01:15.3]} 39.
Rxb3 {[%clk 0:00:04.7]} 39... Rxh2+ {[%clk 0:01:16]} 40. Kg1 {[%clk 0:00:06.5]}
40... Rc2 {[%clk 0:01:17.2]} 41. Rd3 {[%clk 0:00:06.6]} 41... Kg7 {[%clk
0:01:16.3]} 42. Rd5 {[%clk 0:00:07.2]} 42... Kf6 {[%clk 0:01:16.7]} 43. Rd7
{[%clk 0:00:08.2]} 43... h5 {[%clk 0:01:16.1]} 44. Kh1 {[%clk 0:00:08]} 44... g5
{[%clk 0:01:16.2]} 45. Rd8 {[%clk 0:00:05.9]} 45... h4 {[%clk 0:01:14.1]} 46.
Rd3 {[%clk 0:00:05.3]} 46... g4 {[%clk 0:01:14.6]} 47. Bc8 {[%clk 0:00:05.3]}
47... h3 {[%clk 0:01:11.8]} 48. Bxg4 {[%clk 0:00:04.2]} 48... Rc1+ {[%clk
0:01:12.7]} 49. Rd1 {[%clk 0:00:05.1]} 49... Rc3 {[%clk 0:01:09.9]} 50. Rf1+
{[%clk 0:00:05.6]} 50... Kg5 {[%clk 0:01:06.2]} 51. Bd7 {[%clk 0:00:06.3]} 51...
f6 {[%clk 0:01:05.4]} 52. Rf5+ {[%clk 0:00:04]} 52... Kh4 {[%clk 0:01:05.6]} 53.
Rf1 {[%clk 0:00:05.8]} 53... Kg3 {[%clk 0:01:05.5]} 54. Rg1+ {[%clk 0:00:06.3]}
54... Kh4 {[%clk 0:01:06.1]} 55. Rf1 {[%clk 0:00:07.2]} 55... Rc2 {[%clk
0:01:02.8]} 56. Re1 {[%clk 0:00:06.5]} 56... h2 {[%clk 0:01:00]} 57. Rf1 {[%clk
0:00:05]} 57... Kg3 {[%clk 0:01:00.2]} 58. Rd1 {[%clk 0:00:04.2]} 58... Kf3
{[%clk 0:00:57.9]} 59. Bf5 {[%clk 0:00:04.4]} 59... Rc3 {[%clk 0:00:57.1]} 60.
Bc8 {[%clk 0:00:04.4]} 60... Kf4 {[%clk 0:00:56]} 61. Bb7 {[%clk 0:00:05.3]}
61... Kg3 {[%clk 0:00:54.5]} 62. Rf1 {[%clk 0:00:05.8]} 62... f5 {[%clk
0:00:54]} 63. Ba6 {[%clk 0:00:05]} 63... f4 {[%clk 0:00:54.5]} 64. Bb7 {[%clk
0:00:05.4]} 64... Bd4 {[%clk 0:00:52.8]} 65. c7 {[%clk 0:00:05.2]} 65... Rxc7
{[%clk 0:00:53]} 66. Be4 {[%clk 0:00:06.4]} 66... Rc3 {[%clk 0:00:52.7]} 67. Bd5
{[%clk 0:00:05]} 67... Bf2 {[%clk 0:00:52.9]} 68. Bb7 {[%clk 0:00:04.7]} 68...
Rc2 {[%clk 0:00:50.8]} 69. Be4 {[%clk 0:00:05.1]} 69... Kh3 {[%clk 0:00:51.8]}
70. Bxc2 {[%clk 0:00:05.6]} 70... Kg3 {[%clk 0:00:51.8]} 71. Be4 {[%clk
0:00:05.9]} 71... Be3 {[%clk 0:00:52.8]} 72. Rf3+ {[%clk 0:00:06.3]} 72... Kg4
{[%clk 0:00:53.9]} 73. Kxh2 {[%clk 0:00:08]} 1-0